Cogmind - Beta 13 @@@ ROGUE MODE // 2024.04.04 @ 21:25:00 Player: Lunatic Blue Result: Destroyed by 9D-UDG(R) with Subdweller Machine Gun Performance ------------- Evolutions (0) 0 Regions Visited (3) 600 Robots Destroyed (18) 90 Value Destroyed (565) 565 Prototype IDs (0) 0 Alien Tech Used (0) 0 Bonus (49) 49 TOTAL SCORE: 1304 Bonus ------- Follower Combat Kills 55 Friendly Fire -6 Cogmind --------- Core Integrity 0/250 Matter 255/300 Energy 123/150 System Corruption 0% Temperature Cool (0) Movement Core (400) Ox7 Location -10/Subcaves Parts ------- > --- POWER (1) -------- Light Angular Momentum Engine > --- PROPULSION (2) --- (None) > --- UTILITY (2) ------ Improved Heat Sink Small Storage Unit > --- WEAPON (2) ------- Subdweller Beam Cannon > --- INVENTORY (8) ---- Wheel Flightbrick Small Battery (100) Peak State ------------ > --- POWER ------------ Light Nuclear Core > --- PROPULSION ------- Light Treads Light Treads > --- UTILITY ---------- Improved Heat Sink Small Storage Unit > --- WEAPON ----------- Subdweller Beam Cannon Makeshift Axe > --- INVENTORY -------- Wheel Flightbrick Small Battery Improved Terrain Scanner Grenade Launcher [Rating: 19] Favorites ----------- Power Ion Engine Engine Ion Engine Power Core Light Nuclear Core Propulsion Light Treads Treads Light Treads Leg Aluminum Leg Utility Small Storage Unit Device Improved Heat Sink Storage Small Storage Unit Weapon Assault Rifle Energy Gun Subdweller Laser Energy Cannon Subdweller Beam Cannon Ballistic Gun Assault Rifle Launcher Grenade Launcher Slashing Weapon Makeshift Axe Build | -11 -10 -10 -10 ------- Run | Yrd Mat Min Sub Slots Evolved . | . . . . Power . | . . . . Propulsion . | . . . . Utility . | . . . . Weapon . | . . . . Parts Attached 24 | . 9 3 12 Power 5 | . 1 . 4 Engine 4 | . 1 . 3 Core 1 | . . . 1 Reactor . | . . . . Propulsion 2 | . 2 . . Treads 2 | . 2 . . Leg . | . . . . Wheel . | . . . . Hover . | . . . . Flight . | . . . . Utility 4 | . 4 . . Device 2 | . 2 . . Storage 2 | . 2 . . Processor . | . . . . Hackware . | . . . . Protection . | . . . . Artifact . | . . . . Weapon 13 | . 2 3 8 Energy Gun 1 | . . . 1 Energy Cannon 1 | . . . 1 Ballistic Gun 5 | . 1 2 2 Ballistic Cannon . | . . . . Launcher 3 | . 1 . 2 Special Weapon . | . . . . Impact Weapon . | . . . . Slashing Weapon 3 | . . 1 2 Piercing Weapon . | . . . . Special Melee Weapon . | . . . . Unidentified Prototypes . | . . . . Parts Lost 5 | . . . 5 Power 1 | . . . 1 Propulsion 2 | . . . 2 Utility . | . . . . Weapon 2 | . . . 2 Highest Loss Streak 4 | . . . 4 To Critical Strikes . | . . . . Average Slot Usage (%) 96 | . 98 100 93 Engine 10 | . 14 14 5 Core 3 | . . . 8 Treads 25 | . 28 28 22 Device 13 | . 12 14 14 Storage 14 | . 14 14 14 Energy Cannon 4 | . . . 9 Ballistic Gun 18 | . 27 25 8 Slashing Weapon 4 | . . . 9 Naked Turns . | . . . . Heaviest Build 23 | 13 16 16 23 Greatest Support 40 | 20 40 40 40 Greatest Overweight (x) 7 | . . . 7 Average Overweight (x) . | . . . . Largest Inventory Capacity 25 | . 25 8 8 Average Capacity 8 | . 8 8 8 Most Carried 8 | . 8 8 8 Average Carried 7 | . 7 8 7 Final Capacity 8 | 8 8 8 8 Final Carried 8 | 6 8 8 6 Class Distribution -------------------- 100% | Mutant Dominant Class ---------------- Mutant | -10/Materials Mutant | -10/Mines Mutant | -10/Subcaves Resources | -11 -10 -10 -10 ----------- Run | Yrd Mat Min Sub Matter Collected 649 | 200 282 48 119 Remotely . | . . . . Salvage Created 776 | . 438 96 242 Parts 38 | . 21 6 11 Haulers Intercepted 1 | . 1 . . Recyclers Shooed . | . . . . Parts Field Recycled . | . . . . Retrieved Matter . | . . . . Parts Self-Destructed 7 | . . . 7 Prevented . | . . . . Kills | -11 -10 -10 -10 ------- Run | Yrd Mat Min Sub Combat Hostiles Destroyed 13 | . 8 . 5 Guns 6 | . 6 . . Cannons 2 | . . . 2 AOE 4 | . 2 . 2 Classes Destroyed 5 | . 4 1 . Tunneler 2 | . . 2 . Hauler 1 | . 1 . . Watcher 2 | . 2 . . Grunt 7 | . 6 . 1 Subdweller 6 | . 2 . 4 Best Kill Streak 2 | . 2 2 2 Combat Bots Only 2 | . 2 . 2 Max Kills in Single Turn 2 | . 2 1 1 Gunslinging . | . . . . Exploded 2 | . 2 . 1 Melee . | . . . . Uniques/NPCs Destroyed . | . . . . Combat | -11 -10 -10 -10 -------- Run | Yrd Mat Min Sub Hostile Shots Fired 79 | . 52 . 27 Missed 23 | . 14 . 9 Damage Taken 1057 | . 497 . 560 Core 259 | . 64 . 195 Absorbed by Shields . | . . . . Core Remaining (%) 100 | 100 . . . Volleys Fired 64 | . 45 7 12 Largest 2 | . 2 2 1 Hottest 80 | . 40 40 80 Shots Fired 114 | . 88 14 12 Gun 100 | . 86 14 . Cannon 8 | . . . 8 Launcher 6 | . 2 . 4 Special . | . . . . Kinetic 100 | . 86 14 . Thermal 8 | . . . 8 Explosive 6 | . 2 . 4 Electromagnetic . | . . . . Robot Hit Streak 15 | . 15 11 4 Robot Miss Streak 5 | . 5 1 1 Penetration Max . | . . . . Secondary Targets . | . . . . Shots Hit Robots 81 | . 61 14 6 Core Hits 31 | . 22 3 6 Critical Kills 1 | . . . 1 Critical Parts Destroyed . | . . . . Critical Strikes 1 | . . . 1 Meltdown 1 | . . . 1 Melee Attacks 19 | . . 2 17 Impact . | . . . . Slashing 19 | . . 2 17 Piercing . | . . . . Sneak Attacks 2 | . . 2 . Combat Hostiles . | . . . . Follow-up Attacks . | . . . . Damage Inflicted 1411 | . 829 261 321 Guns 756 | . 639 117 . Cannons 168 | . . . 168 Explosions 343 | . 190 . 153 Melee 144 | . . 144 . Ramming . | . . . . Kinetic 756 | . 639 117 . Thermal 168 | . . . 168 Explosive 343 | . 190 . 153 Electromagnetic . | . . . . Impact . | . . . . Slashing 144 | . . 144 . Piercing . | . . . . Highest Corruption . | . . . . Average Corruption . | . . . . Corruption Purged . | . . . . Corruption Blocked . | . . . . Overload Shots . | . . . . Overflow Damage . | . . . . Projectiles . | . . . . Explosions . | . . . . Melee . | . . . . Knockbacks . | . . . . Impact . | . . . . Kinetic . | . . . . Secondary . | . . . . Self-Inflicted Damage 71 | . . . 71 Shots 3 | . . . 3 Rammed . | . . . . Targets Rammed . | . . . . Kicked . | . . . . Crushed . | . . . . Highest Temperature 9 | . 9 . . Average Temperature 7 | . 7 . . Received Heat Transfer 324 | . 243 . 81 Siege Activations . | . . . . Robots Corrupted . | . . . . Combat Hostiles . | . . . . Parts Fried . | . . . . Impact Corruptions . | . . . . Robots Melted 1 | . . . 1 Combat Hostiles 1 | . . . 1 Parts Melted 1 | . . . 1 Heat Transferred 222 | . . . 222 Parts Sabotaged . | . . . . Parts Stolen . | . . . . Parts Stripped . | . . . . Power Chain Reactions . | . . . . Alert | -11 -10 -10 -10 ------- Run | Yrd Mat Min Sub Peak Influence 157 | . 157 39 . Initial 39 | . . 39 . Average 36 | . 64 17 . Maximum Alert Level . | . . . . Low Security (%) 100 | . 100 100 . Level 1 . | . . . . Level 2 . | . . . . Level 3 . | . . . . Level 4 . | . . . . Level 5 . | . . . . High Security . | . . . . Max Security . | . . . . Squads Dispatched 1 | . 1 . . Investigation . | . . . . Extermination . | . . . . Reinforcement 1 | . 1 . . Assault . | . . . . Garrison . | . . . . Intercept . | . . . . Searches Triggered . | . . . . Construction Impeded . | . . . . Haulers Reinforced . | . . . . Active Scanning Responses . | . . . . Cargo Convoy Interrupts . | . . . . Stealth | -11 -10 -10 -10 --------- Run | Yrd Mat Min Sub Distress Signals 1 | . 1 . . Communications Jammed . | . . . . Distress Signals . | . . . . Times Spotted 22 | . 15 . 7 Peak Tracking Total 4 | . 4 . 3 Tactical Retreats 1 | . 1 . . Traps | -11 -10 -10 -10 ------- Run | Yrd Mat Min Sub Traps Triggered 1 | . . . 1 Indirectly . | . . . . Trap Hack Attempts . | . . . . Triggered . | . . . . Disarmed . | . . . . Reprogrammed . | . . . . Reused . | . . . . Traps Extracted . | . . . . Installed . | . . . . Triggered . | . . . . Machines | -11 -10 -10 -10 ---------- Run | Yrd Mat Min Sub Machines Disabled 1 | . . . 1 Max in Single Turn 1 | . . . 1 Machines Repaired . | . . . . Machines Dismantled . | . . . . Machines Sabotaged . | . . . . Overloaded Fab Kills . | . . . . Hacking | -11 -10 -10 -10 --------- Run | Yrd Mat Min Sub Machines Accessed 5 | . 3 1 1 Terminals 4 | . 3 1 . Fabricators . | . . . . Repair Stations . | . . . . Recycling Units . | . . . . Scanalyzers . | . . . . Garrison Access . | . . . . Total Hacks 30 | . 19 3 8 Successful 19 | . 10 1 8 Failed 11 | . 9 2 . Catastrophic . | . . . . Database Lockouts . | . . . . Manual 16 | . 14 2 . Terminals 22 | . 19 3 . Fabricators . | . . . . Repair Stations . | . . . . Recycling Units . | . . . . Scanalyzers . | . . . . Garrison Access . | . . . . Terminal Hacks 16 | . 7 1 8 Record 8 | . . . 8 Part Schematic 1 | . 1 . . Robot Analysis 2 | . 2 . . Branch Access Points 1 | . 1 . . Terminal Index 1 | . 1 . . Hauler Manifests 1 | . 1 . . Zone Layout 2 | . 1 1 . Fabricator Hacks . | . . . . Repair Station Hacks . | . . . . Recycling Unit Hacks . | . . . . Scanalyzer . | . . . . Garrison Access Hacks . | . . . . Unauthorized Hacks 3 | . 3 . . Terminals 3 | . 3 . . Botnet 2 | . 2 . . Operators 1 | . 1 . . Fabricators . | . . . . Repair Stations . | . . . . Recycling Units . | . . . . Scanalyzers . | . . . . Garrison Access . | . . . . Data Cores Recovered . | . . . . Used . | . . . . Hacking Detections 4 | . 3 1 . Full Trace Events . | . . . . Feedback Events . | . . . . Feedback Blocked . | . . . . Robot Schematics Acquired . | . . . . Robots Built . | . . . . Authchips . | . . . . Time . | . . . . Total Robot Build Rating . | . . . . Part Schematics Acquired 1 | . 1 . . Parts Built . | . . . . Authchips . | . . . . Time . | . . . . Total Part Build Rating . | . . . . Parts Repaired . | . . . . Time . | . . . . Parts Recycled . | . . . . Recycled Matter . | . . . . Retrieved Matter . | . . . . Retrieved Components . | . . . . Parts Scanalyzed . | . . . . Part Schematics Acquired . | . . . . Parts Damaged . | . . . . Bothacking | -11 -10 -10 -10 ------------ Run | Yrd Mat Min Sub Used RIF Installer . | . . . . Robots Hacked . | . . . . Non-combat . | . . . . Combat . | . . . . Robot Hacks Applied . | . . . . Relay Couplers Released . | . . . . Fabnet Peak Effective % . | . . . . Robots Rewired . | . . . . Allies Hacked . | . . . . Hacks Repelled . | . . . . Allies | -11 -10 -10 -10 -------- Run | Yrd Mat Min Sub Total Allies 2 | . . 2 . Largest Group 2 | . . 2 2 Highest-Rated Group 38 | . . 38 38 Highest-Rated Ally 31 | . . 31 31 Total Orders . | . . . . Ally Attacks 9 | . . . 9 Total Damage 90 | . . . 90 Kills 2 | . . . 2 Allies Corrupted . | . . . . Allies Melted . | . . . . Intel | -11 -10 -10 -10 ------- Run | Yrd Mat Min Sub Robot Analysis Total 2 | . 2 . . Derelict Logs Recovered 3 | . . 1 2 Drone Launches . | . . . . Drone Recoveries . | . . . . Exploration | -11 -10 -10 -10 ------------- Run | Yrd Mat Min Sub Turns Passed 3198 | . 715 1039 1444 Spaces Moved 1753 | 1 339 619 794 Core 2 | . . . 2 Treads 1750 | . 339 619 792 Legs 1 | 1 . . . Wheels . | . . . . Hover . | . . . . Flight . | . . . . Fastest Speed 120 | 120 160 160 160 Average Speed 165 | 120 160 160 171 Slowest Speed 400 | 120 160 160 400 Overloaded Moves . | . . . . Propulsion Burnouts . | . . . . Robots Hopped . | . . . . Cave-ins Triggered . | . . . . Exploration Rate (%) 55 | 1 63 101 58 Regions Visited 3 Branch Regions 2 Pre-discovered Areas . | . . . . Known Exits Taken 1 | . 1 . . Unknown Exits Taken 2 | 1 . 1 . Scrap Searched 2 | . . 1 1 Spaces Dug 8 | . . . 8 Terrain Destroyed 32 | . 9 . 23 Melee 4 | . . . 4 Projectile . | . . . . AOE 28 | . 9 . 19 Terrain Rammed . | . . . . Walls Destroyed . | . . . . Machines Disabled . | . . . . Actions | -11 -10 -10 -10 --------- Run | Yrd Mat Min Sub Total 1944 | . 436 653 855 Wait 46 | . 26 19 1 Move 1750 | . 338 618 794 Hop . | . . . . Pick Up 16 | . 9 2 5 Fast Attach 7 | . 2 . 5 Attach 4 | . 2 . 2 Detach . | . . . . Swap 13 | . 5 3 5 Drop 25 | . 9 2 14 Fire 64 | . 45 7 12 Melee 19 | . . 2 17 Ram . | . . . . Kick . | . . . . Crush . | . . . . Escape Stasis . | . . . . Rewire . | . . . . Trap . | . . . . Miscellaneous . | . . . . Route ------- -11/Scrapyard -10/Materials (discovered 5 exits: [*Mat x3] / *Min x2) -10/Mines (discovered 3 exits: [*Mat x2] / *Sub) -10/Subcaves (discovered 1 exit: [*Mat]) History --------- Turn | Location | Event 1 | -11/Scrapyard | Discovered new exit (range 0) 1 | -11/Scrapyard | Entered Materials 249 | -10/Materials | Discovered new exit (range 7) 309 | -10/Materials | Build established: Mutant 366 | -10/Materials | Discovered new exit (range 9) 480 | -10/Materials | Discovered new exit (range 12) 480 | -10/Materials | Discovered new exit (range 19) 500 | -10/Materials | Derelicts attacked the area 561 | -10/Materials | Discovered new exit (range 15) 646 | -10/Materials | Identified exit to Mines 716 | -10/Materials | Entered Mines 723 | -10/Mines | Met a Derelict bent on vengeance 830 | -10/Mines | Discovered new exit (range 15) 1055 | -10/Mines | Discovered new exit (range 15) 1462 | -10/Mines | Learned 8 Materials zone layouts 1485 | -10/Mines | A weapon hastily lodged in a ceiling crevice suddenly fell to the ground 1744 | -10/Mines | Discovered new exit (range 6) 1755 | -10/Mines | Entered Subcaves 1755 | -10/Subcaves | Accompanied by 2 allies 1760 | -10/Subcaves | Led the pair of lost Derelicts to an unsafe place 2271 | -10/Subcaves | Discovered new exit (range 6) 2336 | -10/Subcaves | Learned 8 Materials zone layouts 2339 | -10/Subcaves | Learned Materials stockpile data 2361 | -10/Subcaves | Visited 4L-MR0's lab 2399 | -10/Subcaves | Found Prototype Flight Unit 2746 | -10/Subcaves | Shifting Twisted Machinery released Battle Rifle 2777 | -10/Subcaves | Shifting Twisted Machinery released Sub. Power Source 2792 | -10/Subcaves | A swath of the cavern ceiling suddenly collapsed 3185 | -10/Subcaves | Core integrity fell below 50% 3194 | -10/Subcaves | Core integrity fell below 20% 3199 | -10/Subcaves | Destroyed by 9D-UDG(R) with Subdweller Machine Gun Last Messages --------------- 03084_ Dropped Sub. Machine Gun. 03086_ Acquired Mak. Axe. 03095_ Subatomizers dissect the Sub. Laser. 03100_ 5U-FGA(u) builds Twisted Machinery. 03107_ Subatomizers dissect the Sub. Laser. 03107_ 5U-FGA(u) builds Twisted Machinery. 03118_ Searching scrap... 03118_ Found Sub. Machine Gun. 03118_ Found 29 Matter. 03119_ Acquired 29 matter. 03169_ XJ-24I(z) pulls a Mak. Shrapnel Gun out of the Twisted Machinery. 03174_ XJ-24I(z) destroyed. 03176_ Lgt. Treads destroyed. 03185_ Lgt. Ion Engine destroyed. 03188_ Mak. Axe destroyed. 03191_ 1M-975(R) destroyed. 03195_ Grenade Launcher destroyed. 03196_ Sub. Optics melted. 03196_ 32-R6K(R) destroyed. 03198_ The unstable cave ceiling collapses. Map ----- +----------------------------------------------------+ | ?????????????????????????????????????????????????? | | ?????????????????????????????????????????????????? | | ?????????????????????????????????????????????????? | | ?????????????????????????????????????????????????? | | ?????????????????????????????????????????????????? | | ?????????????????????????????????????????????????? | | ?????????????????????????????????????????????????? | | ?????????????????????????????????????????????????? | | ?????????????????????????????????????????????????? | | ??????????????????????????????#########????####??? | | ?????????????????????####????## ###?## #??? | | ?????????????????????# # #??## ### ###? | | ????????????????????? " #?# # ## | | ????????????????????? " ## [ | | ???????????????????????#" # ## | | ???????????????????????#" ## ### ## | | ?????????????????? ####" #?#### | | ???????????????????" " ## #????# | | ?????????????????????## " #????# | | ?????????????????????# ######## #????# | | ????????????????????## & #?????# #??## | | ????????????????????# %= #????? #?## | | ????????????????????## & # ##????# ##?# | | ????????????????????# ##?????# ### | | ?????????????????????# " #"#??????###### # | | ??????????????????##### @# ####???????????# ? | | ?????????????????## ## #?????????????# ? | | ?????????????????# ###?????????????## ? | | ?????????????????# ###?????????????######? | | ?????????????????# #???????????????????? | | ?????????????????# ""#??????????????????? | | ?????????????????# """" ?????????????????? | | ?????????????????## " """"" #????????????????? | | ??????????????????# """"## ?????????????????? | | ?????????????????? *&& """"#?# ?????????????????? | | ????????????????? |%!""##""????????????????????? | | ???????????????? =&""##? ?????????????????????? | | ??????????????? """#????????????????????????? | | ?????????????? "##"R"""""????????????????????????? | | ?????????????###?#"""""""????????????????????????? | | ?????????????????#"" ""??????????????????????????? | | ????????????????????"????????????????????????????? | | ?????????????????????????????????????????????????? | | ?????????????????????????????????????????????????? | | ?????????????????????????????????????????????????? | | ?????????????????????????????????????????????????? | | ?????????????????????????????????????????????????? | | ?????????????????????????????????????????????????? | | ?????????????????????????????????????????????????? | | ?????????????????????????????????????????????????? | +----------------------------------------------------+ Best States ------------- Heat Dissipation 39 Energy Generation 15 Energy Capacity 250 Matter Stores 300 Matter Capacity 300 Sight Range 16 Terrain Scan Density 10 Evasion (%) 40 Recoil Reduction 2 Item Schematics ----------------- Huge Storage Unit | -10/Materials | Hacked Robot Schematics ------------------ None Fabricated ------------ Nothing Alien Tech Used ----------------- None Achievements -------------- None Challenges ------------ None Game ------ Seed BlastSurveybotPropulsion Manual? 0 Play Time 00:19:50 Cumulative 250.1 hours Start 2024.04.04 @ 21:08:27 End 2024.04.04 @ 21:25:00 Sessions 1 Manual Loads 0 Difficulty Rogue Special Mode None Game No. 323 Rogue 323 Adventurer 0 Explorer 0 Win Type - Total 8 Types 1/1/5/0/0/0/1/0/0 Lore% 78 Gallery% 85 Achievement% 69 Wizard Run 0 Options --------- Layout 0 ASCII 0 Keyboard 0 Movement Numpad Keybinds 0 Fullscreen 2 Font 18/SmallcapsGlow Map View 76x50 Zoom Use 0% Tactical HUD 1 Map Filters NONE Filters NONE Steam 1 RUN: 38bd6d0f-77dd-4234-8cb8-59d6ad6c7344